[Event "*** Titled Tuesday Blitz"]
[Site "Chess.com"]
[Date "2018.07.03"]
[Round "9"]
[White "arctic_t00"]
[Black "MITerryble"]
[Result "1-0"]
[WhiteElo "2367"]
[BlackElo "2708"]
[TimeControl "180+2"]
[EndTime "14:58:17 PDT"]
[Termination "arctic_t00 won on time"]

1. d4 {[%clk 0:03:01.9]} 1... e6 {[%clk 0:03:00.8]} 2. Nf3 {[%clk 0:03:02.9]}
2... Nf6 {[%clk 0:03:01.8]} 3. e3 {[%clk 0:03:03.5]} 3... b6 {[%clk 0:03:02.5]}
4. Bd3 {[%clk 0:03:04.3]} 4... Bb7 {[%clk 0:03:03.7]} 5. O-O {[%clk 0:03:05.8]}
5... g6 {[%clk 0:03:02.3]} 6. c4 {[%clk 0:03:06.4]} 6... Bg7 {[%clk 0:03:03.4]}
7. Nc3 {[%clk 0:03:07.9]} 7... O-O {[%clk 0:03:04.3]} 8. e4 {[%clk 0:03:06.4]}
8... d6 {[%clk 0:03:05.6]} 9. h3 {[%clk 0:02:58.9]} 9... h6 {[%clk 0:02:57.5]}
10. Re1 {[%clk 0:02:58.5]} 10... Nfd7 {[%clk 0:02:58.2]} 11. Be3 {[%clk
0:02:50.4]} 11... e5 {[%clk 0:02:57.6]} 12. d5 {[%clk 0:02:50.7]} 12... a5
{[%clk 0:02:57.8]} 13. a3 {[%clk 0:02:48]} 13... Na6 {[%clk 0:02:54.7]} 14. g4
{[%clk 0:02:41.9]} 14... Ndc5 {[%clk 0:02:37.9]} 15. Bc2 {[%clk 0:02:41.7]}
15... Bc8 {[%clk 0:02:39.1]} 16. b4 {[%clk 0:02:26]} 16... Nd7 {[%clk
0:02:29.7]} 17. Rb1 {[%clk 0:02:27]} 17... Kh7 {[%clk 0:02:27.7]} 18. Kg2 {[%clk
0:02:26.9]} 18... Nf6 {[%clk 0:02:26.1]} 19. Nd2 {[%clk 0:02:14.7]} 19... Bd7
{[%clk 0:02:16.2]} 20. f3 {[%clk 0:02:09.1]} 20... Ng8 {[%clk 0:02:15]} 21. Rh1
{[%clk 0:01:59.4]} 21... axb4 {[%clk 0:02:14.6]} 22. axb4 {[%clk 0:01:59.7]}
22... f5 {[%clk 0:02:07.8]} 23. exf5 {[%clk 0:01:49.3]} 23... gxf5 {[%clk
0:02:08.7]} 24. Ne2 {[%clk 0:01:31.6]} 24... Kh8 {[%clk 0:02:06.9]} 25. Bf2
{[%clk 0:01:31.3]} 25... e4 {[%clk 0:01:56.2]} 26. Nf4 {[%clk 0:01:20.9]} 26...
Qg5 {[%clk 0:01:14.1]} 27. Bg3 {[%clk 0:01:20.3]} 27... Be5 {[%clk 0:01:14.8]}
28. h4 {[%clk 0:01:18]} 28... Qg7 {[%clk 0:01:15.6]} 29. g5 {[%clk 0:01:02.2]}
29... Rae8 {[%clk 0:01:13.2]} 30. Rb3 {[%clk 0:00:56.4]} 30... Ne7 {[%clk
0:01:01.9]} 31. Nh5 {[%clk 0:00:48.1]} 31... Qg6 {[%clk 0:01:02.4]} 32. fxe4
{[%clk 0:00:40.3]} 32... f4 {[%clk 0:00:59.5]} 33. Bf2 {[%clk 0:00:36]} 33...
Rf7 {[%clk 0:00:34.9]} 34. Qf3 {[%clk 0:00:34.8]} 34... hxg5 {[%clk 0:00:29.7]}
35. hxg5 {[%clk 0:00:33.7]} 35... Qxg5+ {[%clk 0:00:31.6]} 36. Kf1 {[%clk
0:00:34.1]} 36... Rh7 {[%clk 0:00:16.1]} 37. Bd1 {[%clk 0:00:29.5]} 37... Rf8
{[%clk 0:00:10.1]} 38. Bh4 {[%clk 0:00:27.6]} 38... Qg6 {[%clk 0:00:04.4]} 39.
Bxe7 {[%clk 0:00:27]} 39... Rxe7 {[%clk 0:00:03]} 40. Nxf4+ {[%clk 0:00:22.3]}
40... Qh7 {[%clk 0:00:04.3]} 41. Ng6+ {[%clk 0:00:19.9]} 41... Kg7 {[%clk
0:00:04.4]} 42. Rxh7+ {[%clk 0:00:17.6]} 42... Kxg6 {[%clk 0:00:06.2]} 43. Qxf8
{[%clk 0:00:14.5]} 43... Rxh7 {[%clk 0:00:07.1]} 44. Nf3 {[%clk 0:00:13.8]}
44... Bf6 {[%clk 0:00:04.4]} 45. e5 {[%clk 0:00:12.8]} 45... Be7 {[%clk
0:00:02.9]} 46. Bc2+ {[%clk 0:00:13.4]} 1-0

[Event "*** Titled Tuesday Blitz"]
[Site "Chess.com"]
[Date "2018.07.03"]
[Round "9"]
[White "GMKrikor"]
[Black "pedromartinez91"]
[Result "1-0"]
[WhiteElo "2611"]
[BlackElo "2428"]
[TimeControl "180+2"]
[EndTime "14:58:37 PDT"]
[Termination "GMKrikor won by checkmate"]

1. e4 {[%clk 0:03:01.9]} 1... e6 {[%clk 0:03:00.5]} 2. d4 {[%clk 0:03:02.7]}
2... d5 {[%clk 0:03:01.6]} 3. Nd2 {[%clk 0:03:04]} 3... Nf6 {[%clk 0:03:02.4]}
4. e5 {[%clk 0:03:03.3]} 4... Ne4 {[%clk 0:03:02.8]} 5. Nxe4 {[%clk 0:03:03.8]}
5... dxe4 {[%clk 0:03:03.6]} 6. Bc4 {[%clk 0:03:05.5]} 6... Qd7 {[%clk
0:03:04.1]} 7. Ne2 {[%clk 0:03:02.5]} 7... c5 {[%clk 0:03:04.8]} 8. c3 {[%clk
0:02:45.2]} 8... Nc6 {[%clk 0:03:03.8]} 9. O-O {[%clk 0:02:45.9]} 9... cxd4
{[%clk 0:03:04]} 10. cxd4 {[%clk 0:02:46.9]} 10... Na5 {[%clk 0:03:05.1]} 11.
Bb3 {[%clk 0:02:44.6]} 11... Nxb3 {[%clk 0:03:06.1]} 12. Qxb3 {[%clk 0:02:45.5]}
12... b6 {[%clk 0:03:07.4]} 13. Be3 {[%clk 0:02:43.6]} 13... Bb7 {[%clk
0:03:08.4]} 14. Nc3 {[%clk 0:02:37.1]} 14... Bd5 {[%clk 0:03:09.3]} 15. Nxd5
{[%clk 0:02:21.7]} 15... Qxd5 {[%clk 0:03:11.2]} 16. Rfc1 {[%clk 0:02:21.8]}
16... Kd7 {[%clk 0:03:01.1]} 17. Qa4+ {[%clk 0:02:04.2]} 17... b5 {[%clk
0:03:01.7]} 18. Qa6 {[%clk 0:02:05.2]} 18... Be7 {[%clk 0:02:54.7]} 19. Rc2
{[%clk 0:01:58.2]} 19... Rhb8 {[%clk 0:02:33.1]} 20. Rac1 {[%clk 0:01:48.2]}
20... Qb7 {[%clk 0:02:34.1]} 21. Rc7+ {[%clk 0:00:36]} 21... Qxc7 {[%clk
0:02:33.7]} 22. Rxc7+ {[%clk 0:00:37.9]} 22... Kxc7 {[%clk 0:02:35.3]} 23. Bd2
{[%clk 0:00:30.8]} 23... Kd7 {[%clk 0:02:29.7]} 24. g3 {[%clk 0:00:29.2]} 24...
Rb6 {[%clk 0:02:29.9]} 25. Qa5 {[%clk 0:00:30.5]} 25... Rb7 {[%clk 0:02:19.8]}
26. Qa6 {[%clk 0:00:29.3]} 26... Rb6 {[%clk 0:02:20.7]} 27. Qa5 {[%clk
0:00:30.9]} 27... h5 {[%clk 0:02:20.2]} 28. Be3 {[%clk 0:00:31.7]} 28... Rb7
{[%clk 0:02:19.1]} 29. Qa6 {[%clk 0:00:32.4]} 29... Rb6 {[%clk 0:02:16.6]} 30.
Qa5 {[%clk 0:00:33.8]} 30... Rbb8 {[%clk 0:02:10.2]} 31. Qa6 {[%clk 0:00:32.8]}
31... Bb4 {[%clk 0:01:59.2]} 32. d5 {[%clk 0:00:28.7]} 32... exd5 {[%clk
0:01:59.9]} 33. a3 {[%clk 0:00:29.4]} 33... Be7 {[%clk 0:02:00]} 34. Bd4 {[%clk
0:00:26.1]} 34... Bf8 {[%clk 0:01:26]} 35. Kg2 {[%clk 0:00:25.8]} 35... Be7
{[%clk 0:01:26.8]} 36. h3 {[%clk 0:00:24.8]} 36... Bf8 {[%clk 0:01:27.9]} 37. g4
{[%clk 0:00:24.3]} 37... hxg4 {[%clk 0:01:29.2]} 38. hxg4 {[%clk 0:00:26.2]}
38... Be7 {[%clk 0:01:30.9]} 39. Kg3 {[%clk 0:00:27.8]} 39... b4 {[%clk
0:01:26.7]} 40. Qa4+ {[%clk 0:00:27.8]} 40... Kd8 {[%clk 0:01:24.4]} 41. Qc6
{[%clk 0:00:27.6]} 41... bxa3 {[%clk 0:01:21.8]} 42. bxa3 {[%clk 0:00:29.5]}
42... Bxa3 {[%clk 0:01:11.6]} 43. Qxd5+ {[%clk 0:00:30.5]} 43... Ke8 {[%clk
0:01:12.8]} 44. e6 {[%clk 0:00:31]} 44... fxe6 {[%clk 0:01:08.2]} 45. Qxe6+
{[%clk 0:00:32.2]} 45... Kf8 {[%clk 0:01:08.3]} 46. Qxe4 {[%clk 0:00:13.1]}
46... Bd6+ {[%clk 0:01:08.2]} 47. f4 {[%clk 0:00:13]} 47... Rb3+ {[%clk
0:01:05.7]} 48. Kh4 {[%clk 0:00:13.7]} 48... Rd8 {[%clk 0:01:05.1]} 49. Qf5+
{[%clk 0:00:14]} 49... Ke7 {[%clk 0:00:55.2]} 50. Bxg7 {[%clk 0:00:15.1]} 50...
Rg8 {[%clk 0:00:30.3]} 51. Bf6+ {[%clk 0:00:15.3]} 51... Kf7 {[%clk 0:00:19.9]}
52. g5 {[%clk 0:00:11.4]} 52... Rgb8 {[%clk 0:00:06.6]} 53. Qd5+ {[%clk
0:00:11.8]} 53... Kg6 {[%clk 0:00:06.9]} 54. f5+ {[%clk 0:00:08.3]} 54... Kh7
{[%clk 0:00:07.1]} 55. Qf7# {[%clk 0:00:09.9]} 1-0

[Event "*** Titled Tuesday Blitz"]
[Site "Chess.com"]
[Date "2018.07.03"]
[Round "9"]
[White "Shant_Sargsyan"]
[Black "Dr-Bassem"]
[Result "1-0"]
[WhiteElo "2902"]
[BlackElo "2715"]
[TimeControl "180+2"]
[EndTime "14:58:54 PDT"]
[Termination "Shant_Sargsyan won on time"]

1. d4 {[%clk 0:02:53.1]} 1... Nf6 {[%clk 0:03:00.9]} 2. c4 {[%clk 0:02:53.9]}
2... g6 {[%clk 0:03:02.1]} 3. Nc3 {[%clk 0:02:53.8]} 3... Bg7 {[%clk 0:03:03.3]}
4. e4 {[%clk 0:02:55.1]} 4... d6 {[%clk 0:03:04.8]} 5. Nf3 {[%clk 0:02:56.7]}
5... O-O {[%clk 0:03:06.2]} 6. Be2 {[%clk 0:02:58.3]} 6... e5 {[%clk 0:03:07.7]}
7. O-O {[%clk 0:02:59.9]} 7... Nc6 {[%clk 0:03:09]} 8. Be3 {[%clk 0:03:01.4]}
8... Ng4 {[%clk 0:03:03.4]} 9. Bg5 {[%clk 0:03:02.2]} 9... f6 {[%clk 0:03:04.7]}
10. Bh4 {[%clk 0:03:02]} 10... g5 {[%clk 0:02:46.5]} 11. Bg3 {[%clk 0:03:03.2]}
11... Nh6 {[%clk 0:02:47.6]} 12. dxe5 {[%clk 0:03:04]} 12... dxe5 {[%clk
0:02:47.9]} 13. Qb3 {[%clk 0:03:03]} 13... g4 {[%clk 0:01:20.5]} 14. Rad1 {[%clk
0:03:03.6]} 14... Qe8 {[%clk 0:01:17.5]} 15. Ne1 {[%clk 0:03:00.7]} 15... Nd4
{[%clk 0:01:16.5]} 16. Rxd4 {[%clk 0:03:01.8]} 16... exd4 {[%clk 0:01:17.5]} 17.
Nd5 {[%clk 0:03:03.4]} 17... Bd7 {[%clk 0:00:33.2]} 18. Nxc7 {[%clk 0:03:01.1]}
18... Qxe4 {[%clk 0:00:33.8]} 19. Bd3 {[%clk 0:03:02.5]} 19... Qc6 {[%clk
0:00:34.2]} 20. Nxa8 {[%clk 0:03:02.7]} 20... Rxa8 {[%clk 0:00:35.7]} 21. Nc2
{[%clk 0:03:02]} 21... f5 {[%clk 0:00:32.1]} 22. Re1 {[%clk 0:02:55.1]} 22...
Re8 {[%clk 0:00:29.4]} 23. Rd1 {[%clk 0:02:34.5]} 23... Nf7 {[%clk 0:00:27.6]}
24. Nb4 {[%clk 0:02:33.5]} 24... Qb6 {[%clk 0:00:25.5]} 25. c5 {[%clk
0:02:06.7]} 25... Qxc5 {[%clk 0:00:20]} 26. Bc4 {[%clk 0:02:08.2]} 26... Qe7
{[%clk 0:00:20.2]} 27. Nd5 {[%clk 0:02:05.1]} 27... Qe4 {[%clk 0:00:14.8]} 28.
Nf6+ {[%clk 0:01:41.1]} 28... Bxf6 {[%clk 0:00:15.8]} 29. Bxf7+ {[%clk
0:01:42.6]} 29... Kg7 {[%clk 0:00:17.3]} 30. Bxe8 {[%clk 0:01:44.1]} 30... Bxe8
{[%clk 0:00:19]} 31. f3 {[%clk 0:01:41]} 31... gxf3 {[%clk 0:00:18.8]} 32. gxf3
{[%clk 0:01:40.8]} 32... Qe3+ {[%clk 0:00:18.2]} 33. Qxe3 {[%clk 0:01:39.1]}
33... dxe3 {[%clk 0:00:19.1]} 34. Bf4 {[%clk 0:01:15.4]} 34... e2 {[%clk
0:00:19.5]} 35. Re1 {[%clk 0:01:15.8]} 35... Bd4+ {[%clk 0:00:20.9]} 36. Kg2
{[%clk 0:01:13.5]} 36... Bb5 {[%clk 0:00:22.5]} 37. Bd2 {[%clk 0:01:04.7]} 37...
a6 {[%clk 0:00:15.7]} 38. Bc3 {[%clk 0:01:01.8]} 38... Bxc3 {[%clk 0:00:13.6]}
39. bxc3 {[%clk 0:01:03.7]} 39... Kf6 {[%clk 0:00:14.5]} 40. Kf2 {[%clk
0:01:05.2]} 40... Bc4 {[%clk 0:00:15.6]} 41. Rb1 {[%clk 0:00:57.9]} 41... b5
{[%clk 0:00:16]} 42. Rb2 {[%clk 0:00:59.3]} 42... Ke5 {[%clk 0:00:15.6]} 43. Rd2
{[%clk 0:01:00.5]} 43... a5 {[%clk 0:00:12.8]} 44. a3 {[%clk 0:01:01.7]} 44...
a4 {[%clk 0:00:13.8]} 45. Rd4 {[%clk 0:00:57.8]} 45... Kf6 {[%clk 0:00:13.4]}
46. Rh4 {[%clk 0:00:31.5]} 46... Kg6 {[%clk 0:00:12.3]} 47. f4 {[%clk
0:00:24.6]} 47... h6 {[%clk 0:00:08.9]} 48. Rh3 {[%clk 0:00:25]} 48... Kg7
{[%clk 0:00:08.5]} 49. Rg3+ {[%clk 0:00:23]} 49... Kf6 {[%clk 0:00:09.4]} 50. h4
{[%clk 0:00:24.3]} 50... h5 {[%clk 0:00:03.6]} 51. Rg5 {[%clk 0:00:21]} 51...
Bd3 {[%clk 0:00:04.1]} 52. Rxh5 {[%clk 0:00:19]} 52... Ke6 {[%clk 0:00:05.7]}
53. Rg5 {[%clk 0:00:18.5]} 53... Kd5 {[%clk 0:00:05.4]} 54. h5 {[%clk
0:00:19.8]} 54... Kc4 {[%clk 0:00:06.9]} 55. h6 {[%clk 0:00:20.9]} 55... Kxc3
{[%clk 0:00:08.6]} 56. h7 {[%clk 0:00:17.9]} 56... Kd2 {[%clk 0:00:09.7]} 57.
Rg1 {[%clk 0:00:19.3]} 1-0

[Event "*** Titled Tuesday Blitz"]
[Site "Chess.com"]
[Date "2018.07.03"]
[Round "9"]
[White "Paralinch"]
[Black "dretch"]
[Result "1/2-1/2"]
[WhiteElo "2803"]
[BlackElo "2790"]
[TimeControl "180+2"]
[EndTime "14:58:57 PDT"]
[Termination "Game drawn by stalemate"]

1. e4 {[%clk 0:03:01.9]} 1... e6 {[%clk 0:03:00.6]} 2. d4 {[%clk 0:03:02.7]}
2... d5 {[%clk 0:03:01.8]} 3. exd5 {[%clk 0:03:04.3]} 3... exd5 {[%clk
0:03:02.9]} 4. Nf3 {[%clk 0:03:06]} 4... Bd6 {[%clk 0:03:03.5]} 5. Bd3 {[%clk
0:03:06.8]} 5... Nc6 {[%clk 0:03:04.1]} 6. O-O {[%clk 0:03:04.3]} 6... Bg4
{[%clk 0:03:04.6]} 7. c3 {[%clk 0:03:03]} 7... Nge7 {[%clk 0:03:04.1]} 8. b4
{[%clk 0:02:56.3]} 8... Qd7 {[%clk 0:02:57.1]} 9. Nbd2 {[%clk 0:02:52.5]} 9...
O-O {[%clk 0:02:54.3]} 10. Qc2 {[%clk 0:02:48.9]} 10... Bf5 {[%clk 0:02:53.8]}
11. Nb3 {[%clk 0:02:47.4]} 11... Bxd3 {[%clk 0:02:50.5]} 12. Qxd3 {[%clk
0:02:49.3]} 12... Qf5 {[%clk 0:02:51.5]} 13. Rd1 {[%clk 0:02:39.3]} 13... Rfe8
{[%clk 0:02:44.3]} 14. b5 {[%clk 0:02:36.5]} 14... Nd8 {[%clk 0:02:36.7]} 15.
Be3 {[%clk 0:02:27.3]} 15... Qxd3 {[%clk 0:02:25.8]} 16. Rxd3 {[%clk 0:02:28.2]}
16... a6 {[%clk 0:02:27.4]} 17. a4 {[%clk 0:02:20.3]} 17... axb5 {[%clk
0:02:28.1]} 18. axb5 {[%clk 0:02:22.2]} 18... Rxa1+ {[%clk 0:02:29.5]} 19. Nxa1
{[%clk 0:02:24.1]} 19... Ne6 {[%clk 0:02:29.8]} 20. Nb3 {[%clk 0:02:16.7]} 20...
Ra8 {[%clk 0:02:27.1]} 21. Rd1 {[%clk 0:02:17.9]} 21... Ra2 {[%clk 0:02:15.2]}
22. Nfd2 {[%clk 0:02:15.7]} 22... f5 {[%clk 0:01:58]} 23. f3 {[%clk 0:02:08.8]}
23... Kf7 {[%clk 0:01:09.5]} 24. h3 {[%clk 0:01:51.5]} 24... Rc2 {[%clk
0:00:48.9]} 25. Rc1 {[%clk 0:01:49.4]} 25... Rxc1+ {[%clk 0:00:49.7]} 26. Nxc1
{[%clk 0:01:51.3]} 26... Nc8 {[%clk 0:00:47]} 27. c4 {[%clk 0:01:49.8]} 27... f4
{[%clk 0:00:45.8]} 28. Bf2 {[%clk 0:01:47.9]} 28... Bb4 {[%clk 0:00:45.6]} 29.
Ncb3 {[%clk 0:01:47.5]} 29... Nb6 {[%clk 0:00:44.3]} 30. cxd5 {[%clk 0:01:39.2]}
30... Nxd5 {[%clk 0:00:45.2]} 31. Nc4 {[%clk 0:01:40.7]} 31... b6 {[%clk
0:00:38.3]} 32. Nc1 {[%clk 0:01:22.5]} 32... Nc3 {[%clk 0:00:21.7]} 33. Nd3
{[%clk 0:01:13.5]} 33... Be7 {[%clk 0:00:22.7]} 34. Kf1 {[%clk 0:01:06]} 34...
Ke8 {[%clk 0:00:22.8]} 35. Be1 {[%clk 0:01:03.2]} 35... Nd5 {[%clk 0:00:16.9]}
36. Bf2 {[%clk 0:00:59.8]} 36... Bf6 {[%clk 0:00:17.7]} 37. Nce5 {[%clk
0:00:54.1]} 37... Nc3 {[%clk 0:00:16]} 38. Be1 {[%clk 0:00:48.9]} 38... Nd5
{[%clk 0:00:13.8]} 39. Bf2 {[%clk 0:00:49.6]} 39... Bxe5 {[%clk 0:00:14.8]} 40.
dxe5 {[%clk 0:00:47.2]} 40... Nc3 {[%clk 0:00:15.1]} 41. Be1 {[%clk 0:00:48.4]}
41... Nxb5 {[%clk 0:00:15.6]} 42. Bd2 {[%clk 0:00:49.7]} 42... g5 {[%clk
0:00:16]} 43. h4 {[%clk 0:00:51.2]} 43... h6 {[%clk 0:00:17.4]} 44. hxg5 {[%clk
0:00:52.5]} 44... hxg5 {[%clk 0:00:18.7]} 45. g3 {[%clk 0:00:51.3]} 45... fxg3
{[%clk 0:00:19.3]} 46. Kg2 {[%clk 0:00:52.8]} 46... c5 {[%clk 0:00:19.9]} 47.
Kxg3 {[%clk 0:00:52.2]} 47... c4 {[%clk 0:00:20.9]} 48. Nb4 {[%clk 0:00:53.4]}
48... c3 {[%clk 0:00:21.5]} 49. Be3 {[%clk 0:00:53.9]} 49... Nbd4 {[%clk
0:00:18.4]} 50. Kg4 {[%clk 0:00:53.9]} 50... b5 {[%clk 0:00:18.9]} 51. Nd3
{[%clk 0:00:28.2]} 51... c2 {[%clk 0:00:16.9]} 52. Bc1 {[%clk 0:00:22.9]} 52...
Kd7 {[%clk 0:00:15.4]} 53. Bb2 {[%clk 0:00:24]} 53... Kc6 {[%clk 0:00:13.8]} 54.
f4 {[%clk 0:00:24.3]} 54... gxf4 {[%clk 0:00:13.3]} 55. Nxf4 {[%clk 0:00:26.2]}
55... Nxf4 {[%clk 0:00:11.5]} 56. Kxf4 {[%clk 0:00:28.1]} 56... Ne2+ {[%clk
0:00:11.5]} 57. Kf5 {[%clk 0:00:29.5]} 57... Kd7 {[%clk 0:00:11.5]} 58. e6+
{[%clk 0:00:27.1]} 58... Ke7 {[%clk 0:00:06.7]} 59. Ba3+ {[%clk 0:00:27.9]}
59... Ke8 {[%clk 0:00:07]} 60. Ke5 {[%clk 0:00:29.3]} 60... b4 {[%clk
0:00:06.7]} 61. Bb2 {[%clk 0:00:30.6]} 61... c1=Q {[%clk 0:00:06.5]} 62. Bxc1
{[%clk 0:00:31.1]} 62... Nxc1 {[%clk 0:00:08.4]} 63. Kd4 {[%clk 0:00:32.6]}
63... b3 {[%clk 0:00:07.5]} 64. Kc3 {[%clk 0:00:33.7]} 64... Ke7 {[%clk
0:00:08.1]} 65. Kb2 {[%clk 0:00:34.9]} 65... Kxe6 {[%clk 0:00:09.1]} 66. Kxc1
{[%clk 0:00:36.3]} 66... Kd5 {[%clk 0:00:09.9]} 67. Kb2 {[%clk 0:00:37.6]} 67...
Kc4 {[%clk 0:00:10.9]} 68. Kb1 {[%clk 0:00:39]} 68... Kc3 {[%clk 0:00:11.2]} 69.
Kc1 {[%clk 0:00:40.2]} 69... b2+ {[%clk 0:00:12.4]} 70. Kb1 {[%clk 0:00:41.6]}
70... Kb3 {[%clk 0:00:13.7]} 1/2-1/2

[Event "*** Titled Tuesday Blitz"]
[Site "Chess.com"]
[Date "2018.07.03"]
[Round "9"]
[White "Triumphmate"]
[Black "NemtsevIgor"]
[Result "1-0"]
[WhiteElo "2239"]
[BlackElo "2384"]
[TimeControl "180+2"]
[EndTime "14:59:03 PDT"]
[Termination "Triumphmate won by resignation"]

1. e4 {[%clk 0:03:01.9]} 1... c6 {[%clk 0:03:00]} 2. d4 {[%clk 0:03:00.6]} 2...
d5 {[%clk 0:03:01]} 3. Nc3 {[%clk 0:03:01.9]} 3... h6 {[%clk 0:03:01.7]} 4. Nf3
{[%clk 0:03:00.6]} 4... Nf6 {[%clk 0:03:02.1]} 5. e5 {[%clk 0:03:01.5]} 5... Ne4
{[%clk 0:03:03.3]} 6. Bd3 {[%clk 0:03:01.3]} 6... Bf5 {[%clk 0:03:03.8]} 7. O-O
{[%clk 0:03:00.1]} 7... Nxc3 {[%clk 0:03:05]} 8. bxc3 {[%clk 0:03:02]} 8... Bxd3
{[%clk 0:03:06.5]} 9. Qxd3 {[%clk 0:03:03.3]} 9... e6 {[%clk 0:03:08.4]} 10. Be3
{[%clk 0:03:02.6]} 10... Be7 {[%clk 0:03:06.4]} 11. Nd2 {[%clk 0:03:03.4]} 11...
O-O {[%clk 0:02:58.6]} 12. f4 {[%clk 0:03:04.8]} 12... c5 {[%clk 0:02:44.9]} 13.
Rf3 {[%clk 0:03:04.2]} 13... c4 {[%clk 0:02:39.2]} 14. Qe2 {[%clk 0:03:04.3]}
14... f5 {[%clk 0:02:31.4]} 15. exf6 {[%clk 0:03:00.8]} 15... Bxf6 {[%clk
0:02:32.4]} 16. Raf1 {[%clk 0:03:01.4]} 16... Nc6 {[%clk 0:02:27.8]} 17. Rg3
{[%clk 0:02:57.7]} 17... Kh7 {[%clk 0:02:23.3]} 18. Qg4 {[%clk 0:02:54.5]} 18...
Qe8 {[%clk 0:02:10.5]} 19. Nf3 {[%clk 0:02:55.6]} 19... b5 {[%clk 0:02:04.8]}
20. Ne5 {[%clk 0:02:51.6]} 20... Bxe5 {[%clk 0:01:59.1]} 21. fxe5 {[%clk
0:02:47.2]} 21... Rxf1+ {[%clk 0:01:59.4]} 22. Kxf1 {[%clk 0:02:49.1]} 22...
Qf7+ {[%clk 0:01:58.2]} 23. Rf3 {[%clk 0:02:49.3]} 23... Qg6 {[%clk 0:01:58.9]}
24. Qh3 {[%clk 0:02:27.1]} 24... Re8 {[%clk 0:01:11.5]} 25. Rf2 {[%clk
0:02:26.6]} 25... Ne7 {[%clk 0:01:09.6]} 26. g4 {[%clk 0:02:24.7]} 26... Qe4
{[%clk 0:01:04.7]} 27. Ke2 {[%clk 0:02:17.4]} 27... Ng6 {[%clk 0:01:03]} 28. g5
{[%clk 0:02:11.6]} 28... Qxc2+ {[%clk 0:01:03.4]} 29. Kf1 {[%clk 0:02:06.6]}
29... Qd3+ {[%clk 0:01:00.5]} 30. Kg2 {[%clk 0:02:00.9]} 30... Qe4+ {[%clk
0:01:00.8]} 31. Kf1 {[%clk 0:01:59.5]} 31... Nh4 {[%clk 0:00:49.1]} 32. gxh6
{[%clk 0:01:55.2]} 32... Qb1+ {[%clk 0:00:38.6]} 33. Ke2 {[%clk 0:01:46.2]}
33... Qc2+ {[%clk 0:00:39.2]} 34. Bd2 {[%clk 0:01:33.1]} 34... Qe4+ {[%clk
0:00:33.4]} 35. Kd1 {[%clk 0:01:29.3]} 35... Qb1+ {[%clk 0:00:30.5]} 36. Bc1
{[%clk 0:01:25.5]} 36... Qd3+ {[%clk 0:00:30.7]} 37. Qxd3+ {[%clk 0:01:25.3]}
37... cxd3 {[%clk 0:00:32.6]} 38. Rf7 {[%clk 0:01:25.4]} 38... Nf5 {[%clk
0:00:32]} 39. hxg7 {[%clk 0:01:24.5]} 39... Nxg7 {[%clk 0:00:33.1]} 40. Kd2
{[%clk 0:01:19.3]} 40... Kg6 {[%clk 0:00:30.1]} 41. Rxa7 {[%clk 0:00:57.6]}
41... Nf5 {[%clk 0:00:28.6]} 42. Kxd3 {[%clk 0:00:58.6]} 42... Rh8 {[%clk
0:00:23.1]} 43. Bf4 {[%clk 0:00:47]} 43... Rh3+ {[%clk 0:00:22.7]} 44. Bg3
{[%clk 0:00:47.6]} 44... Nxg3 {[%clk 0:00:22.3]} 45. hxg3 {[%clk 0:00:48.8]}
45... Rxg3+ {[%clk 0:00:24.2]} 46. Kc2 {[%clk 0:00:50.1]} 46... Kf5 {[%clk
0:00:25.3]} 47. Rb7 {[%clk 0:00:47.8]} 47... Rg2+ {[%clk 0:00:26.3]} 48. Kb3
{[%clk 0:00:47.7]} 48... Ke4 {[%clk 0:00:20.7]} 49. Rxb5 {[%clk 0:00:47.4]}
49... Kd3 {[%clk 0:00:21.8]} 50. Rc5 {[%clk 0:00:46.7]} 50... Rg1 {[%clk
0:00:22.6]} 51. a4 {[%clk 0:00:46.2]} 51... Rb1+ {[%clk 0:00:23.4]} 52. Ka2
{[%clk 0:00:47.3]} 52... Rb6 {[%clk 0:00:22.3]} 53. a5 {[%clk 0:00:47]} 53...
Ra6 {[%clk 0:00:23.7]} 54. Kb3 {[%clk 0:00:47.9]} 54... Ra8 {[%clk 0:00:24.5]}
55. Kb4 {[%clk 0:00:49]} 55... Rb8+ {[%clk 0:00:25.5]} 56. Rb5 {[%clk
0:00:50.1]} 56... Rc8 {[%clk 0:00:26.3]} 57. Rc5 {[%clk 0:00:46.3]} 57... Rb8+
{[%clk 0:00:27.3]} 58. Ka4 {[%clk 0:00:47.6]} 58... Rb1 {[%clk 0:00:27.7]} 59.
a6 {[%clk 0:00:46.9]} 59... Kc2 {[%clk 0:00:25.9]} 60. Ka5 {[%clk 0:00:37]}
60... Ra1+ {[%clk 0:00:23]} 61. Kb6 {[%clk 0:00:37.9]} 61... Kb3 {[%clk
0:00:22.8]} 62. a7 {[%clk 0:00:32.7]} 1-0